bitfinex/quotes_BTCUSD_20250903
["timestamp","ask_amount","ask_price","bid_price","bid_amount"]
[1756864965974,0.18103787,111540.0,111530.0,0.49463993]
[1756864966589,0.00173,111540.0,111530.0,0.49969993]
[1756864967020,0.00173,111540.0,111530.0,0.49463993]
[1756864967643,0.18103787,111540.0,111530.0,0.49463993]
[1756864968847,0.18149787,111540.0,111530.0,0.0642]
[1756864969064,0.18149787,111540.0,111530.0,0.22312]
[1756864969916,0.18149787,111540.0,111530.0,0.22212]
[1756864970124,0.18103787,111540.0,111530.0,0.22212]
[1756864970340,0.00344552,111540.0,111530.0,0.49335993]
[1756864970572,0.001,111540.0,111530.0,0.49841993]
[1756864970751,0.001,111540.0,111530.0,1.06734381]
[1756864970999,0.18890798,111560.0,111540.0,0.17930354]
[1756864971211,0.5498468,111560.0,111550.0,0.15928]
[1756864971422,0.1806742,111560.0,111550.0,0.25119599]
[1756864971623,0.18238972,111560.0,111550.0,0.25119599]
[1756864972240,0.18538972,111560.0,111550.0,0.25119599]
[1756864972442,0.1806742,111560.0,111550.0,0.25119599]
[1756864972649,0.18538972,111560.0,111550.0,0.09191599]
[1756864972854,0.1846742,111560.0,111550.0,0.09191599]
[1756864973056,0.1846742,111560.0,111550.0,0.25115599]
[1756864974680,0.17930787,111540.0,111530.0,0.0632]
[1756864974921,0.18003787,111540.0,111530.0,0.15511599]
[1756864975108,0.18003787,111540.0,111530.0,0.31423599]
[1756864975328,0.18175339,111540.0,111530.0,0.31423599]
[1756864975559,0.18175339,111540.0,111530.0,0.09191599]
[1756864975792,0.17934002,111520.0,111510.0,0.13973631]
[1756864975998,0.18007002,111520.0,111510.0,0.2337223]
[1756864976218,0.17934002,111520.0,111510.0,0.57231841]
[1756864976426,0.17933506,111530.0,111510.0,0.57231841]
[1756864976627,0.17933506,111530.0,111520.0,0.09415774]
[1756864976835,0.18006506,111530.0,111520.0,0.09191599]
[1756864977031,0.18178058,111530.0,111520.0,0.09191599]
[1756864977645,0.19076331,111530.0,111520.0,0.09191599]
[1756864977789,0.18904779,111530.0,111520.0,0.25107599]
[1756864977997,0.18904779,111530.0,111520.0,0.09191599]
[1756864978197,0.18006506,111530.0,111520.0,0.25103599]
[1756864978400,0.2027194,111530.0,111520.0,0.15912]
[1756864978603,0.20300388,111530.0,111520.0,0.15912]
[1756864978804,0.17934002,111520.0,111510.0,0.0632]
[1756864979005,0.18007002,111520.0,111510.0,0.31411599]
[1756864979212,0.18007002,111520.0,111510.0,0.25091599]
[1756864979678,0.18178554,111520.0,111510.0,0.25091599]
[1756864980348,0.17935611,111510.0,111500.0,0.0632]
[1756864980635,0.18008611,111510.0,111500.0,0.31431599]
[1756864980836,0.18008611,111510.0,111500.0,0.31427599]
[1756864981021,0.18008611,111510.0,111500.0,0.09191599]
[1756864981427,0.20102493,111510.0,111500.0,0.15916]
[1756864982372,0.17938828,111490.0,111480.0,0.0632]
[1756864982580,0.17938828,111490.0,111480.0,0.1552565]
[1756864982581,0.18011828,111490.0,111480.0,0.1552565]
[1756864982783,0.18011828,111490.0,111480.0,0.3144165]
[1756864983209,0.18011828,111490.0,111480.0,0.3194765]
[1756864983616,0.2010571,111490.0,111480.0,0.0920565]
[1756864983816,0.2010571,111490.0,111480.0,0.00014051]
[1756864984644,0.2020571,111490.0,111480.0,0.00014051]
[1756864986075,0.2020571,111490.0,111480.0,0.00313051]
[1756864986908,0.2020571,111490.0,111480.0,0.00520051]
[1756864988773,0.02193882,111490.0,111480.0,0.27652087]
[1756864988983,0.001,111490.0,111480.0,0.27652087]
[1756864989204,0.001,111490.0,111480.0,0.84544475]
[1756864990520,0.001,111490.0,111480.0,0.86892475]
[1756864990751,0.001,111490.0,111480.0,1.20892475]
[1756864991662,0.20028099,111520.0,111510.0,0.17935611]
[1756864991877,0.20028099,111520.0,111510.0,0.25347794]
[1756864992087,0.20028099,111520.0,111510.0,0.4359221]
[1756864992717,0.02093882,111520.0,111510.0,0.4359221]
[1756864993141,0.02393882,111520.0,111510.0,0.4359221]
[1756864993351,0.20600884,111520.0,111510.0,0.4359221]
[1756864993765,0.20600884,111520.0,111510.0,0.25656599]
[1756864993978,0.20600884,111520.0,111510.0,0.25441599]
[1756864994792,0.20600884,111520.0,111510.0,0.25123599]
[1756864995215,0.20600884,111520.0,111500.0,0.06638]
[1756864995428,0.17937219,111500.0,111480.0,0.24274439]
[1756864995635,0.17937219,111500.0,111490.0,0.25091599]
[1756864995861,0.18010219,111500.0,111490.0,0.25091599]
[1756864996063,0.17937219,111500.0,111490.0,0.43563427]
[1756864996674,0.18037219,111500.0,111490.0,0.43563427]
[1756864996884,0.17937219,111500.0,111490.0,0.43563427]
[1756864997117,0.17937219,111500.0,111490.0,0.25624599]
[1756864997311,0.18010219,111500.0,111490.0,0.09509599]
[1756864997513,0.18181771,111500.0,111490.0,0.25079599]
[1756864997724,0.17938828,111490.0,111480.0,0.06652051]
[1756864997965,0.18011828,111490.0,111480.0,0.1552565]
[1756864998202,0.2010571,111490.0,111480.0,0.1552565]
[1756864998427,0.2010571,111490.0,111480.0,0.3140965]
[1756864998847,0.2010571,111490.0,111480.0,0.0920565]
[1756864999049,0.2010571,111490.0,111480.0,0.15994051]
[1756864999050,0.2015171,111490.0,111480.0,0.15994051]
[1756864999299,0.2010571,111490.0,111480.0,0.00114051]
[1756864999501,0.2020571,111490.0,111480.0,0.15894051]
[1756865000117,0.2020571,111490.0,111480.0,0.00014051]
[1756865002699,0.2013271,111490.0,111480.0,0.00547051]
[1756865002910,0.02193882,111490.0,111480.0,0.27903342]
[1756865003116,0.001,111490.0,111480.0,0.84571475]
[1756865003828,0.001,111490.0,111480.0,0.27679087]
[1756865004051,0.001,111490.0,111480.0,0.84571475]
[1756865004256,0.001,111490.0,111480.0,0.27679087]
[1756865005400,0.001,111490.0,111480.0,0.84571475]
[1756865006334,0.001,111490.0,111480.0,1.20919475]
[1756865006789,0.20201111,111510.0,111500.0,0.17937219]
[1756865007035,0.02093882,111510.0,111500.0,0.43826033]
[1756865007276,0.02265434,111510.0,111500.0,0.43601818]
[1756865007526,0.18830702,111520.0,111500.0,0.43601818]
[1756865007779,0.20027884,111520.0,111510.0,0.18253611]
[1756865007985,0.20027884,111520.0,111510.0,0.54589405]
[1756865007986,0.17934002,111520.0,111510.0,0.54589405]
[1756865008190,0.18105554,111520.0,111510.0,0.2766021]
[1756865008431,0.18105554,111520.0,111510.0,0.09724599]
[1756865008653,0.18178554,111520.0,111510.0,0.25143599]
[1756865008860,0.18178554,111520.0,111500.0,0.00318]
[1756865008861,0.17935611,111510.0,111500.0,0.00318]
[1756865009068,0.17935611,111510.0,111500.0,0.25461599]
[1756865009276,0.17935611,111510.0,111500.0,0.25676599]
[1756865009277,0.18008611,111510.0,111500.0,0.25676599]
[1756865009480,0.20274045,111510.0,111500.0,0.25676599]
[1756865009742,0.20102493,111510.0,111500.0,0.09724599]
[1756865009960,0.20102493,111510.0,111500.0,0.25147599]
[1756865010181,0.20102493,111510.0,111500.0,0.25143599]
[1756865010634,0.20202493,111510.0,111500.0,0.25143599]
[1756865010862,0.20202493,111510.0,111500.0,0.09191599]
[1756865011139,0.17937219,111500.0,111490.0,0.06642]
[1756865011338,0.17937219,111500.0,111490.0,0.31992599]
[1756865011975,0.18181771,111500.0,111490.0,0.31992599]
[1756865012384,0.18181771,111500.0,111490.0,0.32092599]
[1756865012599,0.18181771,111500.0,111490.0,0.31885599]
[1756865012809,0.18181771,111500.0,111490.0,0.31563599]
[1756865013034,0.20275653,111500.0,111490.0,0.31563599]
[1756865013240,0.20104101,111500.0,111490.0,0.31563599]
[1756865013447,0.20104101,111500.0,111490.0,0.09191599]
[1756865013658,0.20104101,111500.0,111480.0,0.00332051]
[1756865013659,0.2003271,111490.0,111480.0,0.00014051]
[1756865013867,0.2003271,111490.0,111480.0,0.2516565]
[1756865014080,0.2003271,111490.0,111480.0,0.2569865]
[1756865014669,0.2010571,111490.0,111480.0,0.2569865]
[1756865015123,0.2010571,111490.0,111480.0,0.0920565]
[1756865015332,0.2010571,111490.0,111480.0,0.15958051]
[1756865015737,0.2010571,111490.0,111480.0,0.00014051]
[1756865015912,0.2010571,111490.0,111480.0,0.16050051]
[1756865016121,0.2010571,111490.0,111480.0,0.00114051]
[1756865016319,0.2010571,111490.0,111480.0,0.00014051]
[1756865016522,0.2010571,111490.0,111480.0,0.15950051]
[1756865016724,0.2040571,111490.0,111480.0,0.15950051]
[1756865016921,0.2020571,111490.0,111480.0,0.15950051]
[1756865017508,0.2010571,111490.0,111480.0,0.15950051]
[1756865018252,0.2010571,111490.0,111480.0,0.00014051]
[1756865018453,0.2040571,111490.0,111480.0,0.15950051]
[1756865019189,0.2060571,111490.0,111480.0,0.15950051]
[1756865020070,0.61821012,111490.0,111480.0,0.00014051]
[1756865020447,0.2060571,111490.0,111480.0,0.00014051]
[1756865021518,0.2060571,111490.0,111480.0,0.00517051]
[1756865021945,0.2060571,111490.0,111480.0,0.00014051]
[1756865022369,0.2053271,111490.0,111480.0,0.00517051]
[1756865022569,0.2060571,111490.0,111480.0,0.00014051]
[1756865029532,0.23302338,111490.0,111480.0,0.00014051]
[1756865029912,0.23229338,111490.0,111480.0,0.00517051]
[1756865030291,0.23302338,111490.0,111480.0,0.00014051]
[1756865031965,0.23302338,111490.0,111480.0,0.00517051]
[1756865032549,0.23302338,111490.0,111480.0,0.00308051]
[1756865032777,0.23302338,111490.0,111480.0,0.00014051]
[1756865034215,0.6451764,111490.0,111480.0,0.00014051]
[1756865034399,0.6456364,111490.0,111480.0,0.00014051]
[1756865034606,0.9856364,111490.0,111480.0,0.00014051]
[1756865035449,1.29876237,111490.0,111480.0,0.00014051]
[1756865036936,1.39067836,111490.0,111480.0,0.00014051]
[1756865037146,1.34876237,111490.0,111480.0,0.00014051]
[1756865037518,1.12778746,111490.0,111480.0,0.00014051]
[1756865038466,0.17943656,111460.0,111450.0,0.07648631]
[1756865038672,0.18115208,111460.0,111450.0,0.07648631]
[1756865038874,0.18188208,111460.0,111450.0,0.07857631]
[1756865039084,0.20885514,111460.0,111450.0,0.07857631]
[1756865039317,0.20713962,111460.0,111450.0,0.07857631]
[1756865039769,0.20713962,111460.0,111450.0,0.00603]
[1756865040009,0.20713962,111460.0,111450.0,0.00703]
[1756865040210,0.20713962,111460.0,111450.0,0.00603]
[1756865040397,0.20713962,111460.0,111450.0,0.001]
[1756865040398,0.61952771,111460.0,111450.0,0.001]
[1756865040598,0.62832428,111460.0,111450.0,0.001]
[1756865040743,0.21593619,111460.0,111450.0,0.00603]
[1756865040947,0.21520619,111460.0,111450.0,0.00603]
[1756865041397,0.21520619,111460.0,111450.0,0.00503]
[1756865041746,0.21593619,111460.0,111450.0,0.00503]
[1756865042363,0.21520619,111460.0,111450.0,0.00503]
[1756865043013,0.17946877,111440.0,111430.0,0.29474631]
[1756865043215,0.17946877,111440.0,111430.0,0.2307923]
[1756865043216,0.20212311,111440.0,111430.0,0.2307923]
[1756865043421,0.20040759,111440.0,111430.0,0.2307923]
[1756865043600,0.20040759,111440.0,111430.0,0.2337323]
[1756865043835,0.20040759,111440.0,111430.0,0.3916123]
[1756865044045,0.20040759,111440.0,111430.0,0.31806599]
[1756865044252,0.20040759,111440.0,111430.0,0.06827]
[1756865044671,0.22738441,111440.0,111430.0,0.00503]
[1756865044879,0.6405025,111440.0,111430.0,0.00503]
[1756865045119,0.6405025,111440.0,111430.0,0.00494]
[1756865045709,0.22811441,111440.0,111430.0,0.00703]
[1756865046875,0.22738441,111440.0,111430.0,0.00703]
[1756865047879,0.22811441,111440.0,111430.0,0.002]
[1756865048323,0.22811441,111440.0,111430.0,0.00703]
[1756865048532,0.22738441,111440.0,111430.0,0.00703]
[1756865051617,0.22811441,111440.0,111430.0,0.00703]
[1756865051866,0.22811441,111440.0,111430.0,0.002]
[1756865052096,0.6405025,111440.0,111430.0,0.002]
[1756865052334,0.9805025,111440.0,111430.0,0.002]
[1756865052556,0.9809625,111440.0,111430.0,0.002]
[1756865053370,1.07287849,111440.0,111430.0,0.002]
[1756865053951,1.07287849,111440.0,111430.0,0.001]
[1756865054160,0.17950098,111420.0,111410.0,0.07658631]
[1756865054364,0.1812165,111420.0,111410.0,0.07658631]
[1756865054569,0.1819465,111420.0,111410.0,0.07860631]
[1756865054773,0.20892857,111420.0,111410.0,0.00506]
[1756865055161,0.20721305,111420.0,111410.0,0.00506]
[1756865055387,0.20721305,111420.0,111410.0,0.00304]
[1756865055591,0.17953321,111400.0,111390.0,0.29466631]
[1756865055778,0.17953321,111400.0,111390.0,0.3886023]
[1756865056156,0.20047203,111400.0,111390.0,0.3916423]
[1756865056790,0.20047203,111400.0,111390.0,0.31809599]
[1756865057278,0.02093882,111400.0,111390.0,0.49764532]
[1756865057514,0.02265434,111400.0,111390.0,0.49864532]
[1756865057774,0.00171552,111400.0,111390.0,0.91103341]
[1756865058043,0.02093882,111410.0,111400.0,0.18177349]
[1756865058261,0.20045591,111410.0,111400.0,0.71605757]
[1756865058494,0.20045591,111410.0,111400.0,0.53428408]
[1756865058714,0.20045591,111410.0,111400.0,0.12189599]
[1756865058947,0.20045591,111410.0,111400.0,0.53652824]
[1756865059226,0.20045591,111410.0,111400.0,0.53428408]
[1756865059429,0.20045591,111410.0,111400.0,0.39109599]
[1756865059649,0.20045591,111410.0,111400.0,0.8875074]
[1756865060028,0.20045591,111410.0,111400.0,0.70797419]
[1756865060565,0.02093882,111410.0,111400.0,1.2043856]
[1756865060804,0.02706594,111420.0,111410.0,0.17951709]
[1756865061013,0.02102269,111420.0,111410.0,0.77837524]
[1756865061265,8.387e-05,111420.0,111410.0,1.09300948]
[1756865061401,8.387e-05,111420.0,111410.0,0.77613128]
[1756865061837,0.00108387,111420.0,111410.0,0.77613128]
[1756865062046,0.00108387,111420.0,111410.0,0.46125308]
[1756865062252,0.00108387,111420.0,111410.0,0.77813128]
[1756865062618,8.387e-05,111420.0,111410.0,0.77813128]
[1756865063018,8.387e-05,111420.0,111410.0,0.78013128]
[1756865063598,8.387e-05,111420.0,111410.0,0.87573908]
[1756865063798,0.17958485,111420.0,111410.0,0.87573908]
[1756865064000,0.17958485,111420.0,111410.0,0.46325308]
[1756865064329,0.17958485,111420.0,111410.0,0.87573908]
[1756865064764,0.17958485,111420.0,111410.0,0.71789908]
[1756865064969,0.17958485,111420.0,111410.0,0.12589599]
[1756865065141,0.20223919,111420.0,111410.0,0.00906]
[1756865065468,0.20052367,111420.0,111410.0,0.16662]
[1756865065900,0.20052367,111420.0,111410.0,0.34638105]
[1756865066108,0.20052367,111420.0,111410.0,0.34413709]
[1756865066318,8.387e-05,111420.0,111410.0,0.84653908]
[1756865066469,8.387e-05,111420.0,111410.0,0.87245908]
[1756865066674,0.17958485,111420.0,111410.0,0.46097308]
[1756865066884,0.17958485,111420.0,111410.0,0.12389599]
[1756865067085,0.17958485,111420.0,111410.0,0.25657599]
[1756865067437,0.17958485,111420.0,111410.0,0.43609308]
[1756865067438,8.387e-05,111420.0,111410.0,0.43609308]
[1756865067837,0.17958485,111420.0,111410.0,0.43609308]
[1756865068288,0.17958485,111420.0,111410.0,0.27849308]
[1756865068467,0.17958485,111420.0,111410.0,0.09897599]
[1756865068702,0.20223919,111420.0,111410.0,0.25653599]
[1756865068917,0.20052367,111420.0,111410.0,0.43605308]
[1756865070107,0.20052367,111420.0,111410.0,0.25653599]
[1756865071487,0.20052367,111420.0,111410.0,0.43605308]
[1756865071936,0.20052367,111420.0,111410.0,0.25653599]
[1756865072146,0.20052367,111420.0,111410.0,0.09897599]
[1756865072357,0.20125367,111420.0,111410.0,0.25633599]
[1756865072539,0.20052367,111420.0,111410.0,0.43585308]
[1756865073262,0.20052367,111420.0,111410.0,0.25633599]
[1756865073475,0.20052367,111420.0,111410.0,0.43585308]
[1756865073683,0.20052367,111420.0,111410.0,0.25633599]
[1756865074112,0.20052367,111420.0,111410.0,0.43585308]
[1756865074321,0.20052367,111420.0,111410.0,0.70505308]
[1756865074736,0.20052367,111420.0,111410.0,0.52553599]
[1756865075336,0.20125367,111420.0,111410.0,0.27626]
[1756865075541,0.20052367,111420.0,111410.0,0.61293709]
[1756865076578,0.20052367,111420.0,111410.0,0.43342]
[1756865078783,0.20125367,111420.0,111410.0,0.27626]
[1756865078997,0.61373967,111420.0,111410.0,0.2712]
[1756865079209,0.64072315,111420.0,111410.0,0.2712]
[1756865079413,0.22823715,111420.0,111410.0,0.2712]
[1756865079637,0.64118315,111420.0,111410.0,0.2712]
[1756865079865,0.22823715,111420.0,111410.0,0.2712]
[1756865080081,0.64072315,111420.0,111410.0,0.2712]
[1756865080283,0.64072315,111420.0,111410.0,0.002]
[1756865080485,0.22823715,111420.0,111410.0,0.002]
[1756865081078,0.22869715,111420.0,111410.0,0.002]
[1756865082609,1.23129568,111420.0,111410.0,0.002]
[1756865082796,1.23129568,111420.0,111410.0,0.001]
[1756865083162,0.17953321,111400.0,111390.0,0.07354631]
[1756865083379,0.18197873,111400.0,111390.0,0.23066631]
[1756865084419,0.18197873,111400.0,111390.0,0.15712]
[1756865084646,0.20896685,111400.0,111390.0,0.15712]
[1756865084837,0.20725133,111400.0,111390.0,0.15712]
[1756865085162,0.21610037,111400.0,111390.0,0.16213]
[1756865085363,0.21537037,111400.0,111390.0,0.58483234]
[1756865085772,0.21537037,111400.0,111390.0,0.16213]
[1756865085990,0.21537037,111400.0,111390.0,0.58483234]
[1756865086398,0.20652133,111400.0,111390.0,0.58483234]
[1756865086617,0.20652133,111400.0,111390.0,0.76438167]
[1756865086834,0.5195307,111410.0,111390.0,0.85629766]
[1756865087060,0.5195307,111410.0,111400.0,0.69709154]
[1756865087061,0.02698219,111410.0,111400.0,0.69709154]
[1756865087278,0.04792101,111410.0,111400.0,1.14660388]
[1756865087492,0.02093882,111410.0,111400.0,1.14660388]
[1756865087748,0.02093882,111410.0,111400.0,1.20988388]
[1756865087957,0.20656727,111420.0,111400.0,0.78718154]
[1756865088175,0.02093882,111410.0,111400.0,0.3615392]
[1756865088384,0.02093882,111410.0,111400.0,0.5186592]
[1756865088806,0.02093882,111410.0,111400.0,0.5215992]
[1756865089034,8.387e-05,111420.0,111410.0,0.17951709]
[1756865089247,0.17958485,111420.0,111410.0,0.27868704]
[1756865089453,0.20223919,111420.0,111410.0,0.69914542]
[1756865089680,0.20052367,111420.0,111410.0,0.51962833]
[1756865089891,0.20052367,111420.0,111410.0,0.25412599]
[1756865090312,0.20125367,111420.0,111410.0,0.25412599]
[1756865090504,0.20052367,111420.0,111410.0,0.16221]
[1756865090820,0.20125367,111420.0,111410.0,0.16221]
[1756865091065,0.20045591,111410.0,111400.0,0.75812234]
[1756865091294,0.20045591,111410.0,111400.0,1.00938833]
[1756865092302,0.20045591,111410.0,111400.0,1.18892154]
[1756865092513,0.02093882,111410.0,111400.0,1.18892154]
[1756865092882,0.20045591,111410.0,111400.0,1.19092154]
[1756865093453,0.20045591,111410.0,111400.0,0.7682192]
[1756865093689,0.02093882,111410.0,111400.0,1.19092154]
[1756865094120,0.02265434,111410.0,111400.0,1.19092154]
[1756865094527,0.20217143,111410.0,111400.0,1.19092154]
[1756865094705,0.20045591,111410.0,111400.0,1.01138833]
[1756865095328,0.20045591,111410.0,111400.0,0.43140599]
[1756865095528,0.20118591,111410.0,111400.0,0.2712]
[1756865095934,0.20118591,111410.0,111400.0,0.42828]
[1756865096560,0.2011853,111410.0,111400.0,0.42728]
[1756865096743,0.2011853,111410.0,111400.0,0.42628]
[1756865096946,0.2011853,111410.0,111400.0,0.42922]
[1756865097184,0.2011853,111410.0,111400.0,0.42616]
[1756865097394,0.22817055,111410.0,111400.0,0.42616]
[1756865097974,0.22817055,111410.0,111400.0,0.15696]
[1756865098175,0.22817055,111410.0,111400.0,0.1599]
[1756865098381,0.22817055,111410.0,111400.0,0.16197]
[1756865098586,0.22744055,111410.0,111400.0,0.16197]
[1756865100647,0.22817055,111410.0,111400.0,0.16197]
[1756865100843,0.22744055,111410.0,111400.0,0.16197]
[1756865101047,0.22817055,111410.0,111400.0,0.16197]
[1756865101305,0.22744055,111410.0,111400.0,0.16197]
[1756865101644,0.22817055,111410.0,111400.0,0.15696]
[1756865102052,0.20047203,111400.0,111390.0,0.27214]
[1756865102277,0.62390437,111400.0,111390.0,0.2692]
[1756865102487,0.78070437,111400.0,111390.0,0.426]
[1756865103324,0.78070437,111400.0,111390.0,0.427]
[1756865103842,0.78070437,111400.0,111390.0,0.428]
[1756865104303,0.35800203,111400.0,111390.0,0.428]
[1756865104532,0.78070437,111400.0,111390.0,0.428]
[1756865104711,0.78070437,111400.0,111390.0,0.002]
[1756865104913,1.12070437,111400.0,111390.0,0.002]
[1756865105116,1.12116437,111400.0,111390.0,0.002]
[1756865105935,0.17954933,111390.0,111380.0,0.2692]
[1756865106157,0.20050427,111380.0,111370.0,0.34608631]
[1756865106363,0.20050427,111380.0,111370.0,0.23567631]
[1756865106364,0.62320661,111380.0,111370.0,0.23567631]
[1756865106573,0.62393661,111380.0,111370.0,0.0004]
[1756865106780,0.78081661,111380.0,111370.0,0.15728]
[1756865106989,0.80780941,111380.0,111370.0,0.0004]
[1756865107415,1.14789323,111380.0,111370.0,0.0004]
[1756865108684,1.14789323,111380.0,111370.0,0.0024]
[1756865109479,1.23980922,111380.0,111370.0,0.0024]
[1756865109688,0.81710688,111380.0,111370.0,0.0024]
[1756865109906,1.23980922,111380.0,111370.0,0.0024]
[1756865110324,0.81710688,111380.0,111370.0,0.0024]
[1756865110538,1.23980922,111380.0,111370.0,0.0024]
[1756865111351,1.24026922,111380.0,111370.0,0.0024]
[1756865111775,1.23980922,111380.0,111370.0,0.0024]
[1756865111981,1.23980922,111380.0,111370.0,0.0004]
[1756865112406,1.24180922,111380.0,111370.0,0.0004]
[1756865112590,1.24080922,111380.0,111370.0,0.0004]
[1756865112925,1.24280922,111380.0,111370.0,0.0004]
[1756865113134,1.24272922,111380.0,111370.0,0.0004]
[1756865113354,1.24318922,111380.0,111370.0,0.0004]
[1756865114223,1.08638922,111380.0,111370.0,0.0004]
[1756865114435,1.24264922,111380.0,111370.0,0.0004]
[1756865115252,1.24310922,111380.0,111370.0,0.0004]
[1756865116572,0.82040688,111380.0,111370.0,0.0004]
[1756865116780,1.24310922,111380.0,111370.0,0.0004]
[1756865118684,0.66322688,111380.0,111370.0,0.0004]
[1756865118884,1.24264922,111380.0,111370.0,0.0004]
[1756865120963,1.24310922,111380.0,111370.0,0.0004]
[1756865122485,1.24264922,111380.0,111370.0,0.0004]
[1756865123967,1.24310922,111380.0,111370.0,0.0004]
[1756865124383,1.33502521,111380.0,111370.0,0.0004]
[1756865124593,0.17958157,111370.0,111360.0,0.0004]
[1756865124798,0.4507119,111370.0,111360.0,0.0004]
[1756865125003,0.87242872,111370.0,111360.0,0.0004]
[1756865125405,0.29316638,111370.0,111360.0,0.0004]
[1756865125609,0.87242872,111370.0,111360.0,0.00338]
[1756865126314,0.87542872,111370.0,111360.0,0.00546]
[1756865126688,0.87742872,111370.0,111360.0,0.0004]
[1756865126901,0.87742872,111370.0,111360.0,0.00546]
[1756865127523,0.87681872,111370.0,111360.0,0.00546]
[1756865127723,0.747139,111370.0,111360.0,0.00546]
[1756865127895,0.903819,111370.0,111360.0,0.00546]
[1756865128320,0.90405921,111370.0,111360.0,0.00546]
[1756865128520,0.90405921,111370.0,111360.0,0.00338]
[1756865129568,0.90405921,111370.0,111360.0,0.00546]
[1756865130603,0.90405921,111370.0,111360.0,0.0004]
[1756865131352,0.90405921,111370.0,111360.0,0.00338]
[1756865132359,0.92085839,111370.0,111360.0,0.0004]
[1756865132732,0.94021278,111370.0,111360.0,0.0004]
[1756865132941,0.96300064,111370.0,111360.0,0.0004]
[1756865134380,0.96930591,111370.0,111360.0,0.0004]
[1756865134994,0.96932083,111370.0,111360.0,0.0004]
[1756865135407,0.96978083,111370.0,111360.0,0.0004]
[1756865135618,1.30978083,111370.0,111360.0,0.0004]
[1756865136219,0.54055265,111350.0,111340.0,0.07652631]
[1756865136457,1.11961499,111350.0,111340.0,0.07652631]
[1756865136688,0.20058491,111330.0,111320.0,0.025231]
[1756865136925,0.20058491,111330.0,111320.0,0.294431]
[1756865137120,0.20058491,111330.0,111320.0,0.296511]
[1756865137337,0.20058491,111330.0,111320.0,0.299491]
[1756865137574,0.20058491,111330.0,111320.0,0.90185557]
[1756865137997,0.22758828,111330.0,111320.0,0.72266228]
[1756865138911,0.22758828,111330.0,111320.0,0.29995994]
[1756865139161,0.22758828,111330.0,111320.0,0.30495994]
[1756865139561,0.22758828,111330.0,111320.0,0.30295994]
[1756865139997,0.22758828,111330.0,111320.0,0.30395994]
[1756865140670,0.22758828,111330.0,111320.0,0.46031994]
[1756865141107,0.22758828,111330.0,111320.0,0.45931994]
[1756865141318,0.22758828,111330.0,111320.0,0.29995994]
[1756865141588,0.54501763,111330.0,111320.0,0.30295994]
[1756865142238,0.54501763,111330.0,111320.0,0.30195994]
[1756865142494,0.54501763,111330.0,111320.0,0.29995994]
[1756865142942,0.54501763,111330.0,111320.0,0.30095994]
[1756865143165,0.54501763,111330.0,111320.0,0.29995994]
[1756865143421,0.22758828,111330.0,111320.0,0.29995994]
[1756865143663,0.22758828,111330.0,111320.0,0.61738929]
[1756865143903,0.22758828,111330.0,111320.0,0.29995994]
[1756865144100,0.22758828,111330.0,111320.0,0.61738929]
[1756865144319,0.22758828,111330.0,111320.0,0.29995994]
[1756865144545,0.22758828,111330.0,111320.0,0.30095994]
[1756865144989,0.54501763,111330.0,111320.0,0.30095994]
[1756865145225,0.22758828,111330.0,111320.0,0.30095994]
[1756865145900,0.66250927,111340.0,111320.0,0.93819686]
[1756865145901,0.17964372,111340.0,111320.0,0.93819686]
[1756865146121,0.18859452,111350.0,111330.0,0.774447]
[1756865146340,0.21559374,111350.0,111340.0,0.31742935]
[1756865146582,0.02093882,111340.0,111330.0,0.76913143]
[1756865147023,0.02093882,111340.0,111330.0,0.77129143]
[1756865147491,0.02093882,111340.0,111330.0,0.77436143]
[1756865147715,0.02293882,111340.0,111330.0,0.77436143]
[1756865147971,0.02193882,111340.0,111330.0,0.77436143]
[1756865148195,0.02093882,111340.0,111330.0,0.77436143]
[1756865148444,0.02293882,111340.0,111330.0,0.77436143]
[1756865148688,0.001,111340.0,111330.0,0.77436143]
[1756865148935,0.02699922,111350.0,111340.0,0.17962996]
[1756865149226,0.5055002,111370.0,111350.0,0.17961383]
[1756865149428,0.22410931,111370.0,111360.0,0.16175]
[1756865149636,0.56247748,111370.0,111360.0,0.16175]
[1756865149840,0.56247748,111370.0,111360.0,0.00523]
[1756865150022,0.56247748,111370.0,111360.0,0.16191]
[1756865150250,0.56320748,111370.0,111360.0,0.00523]
[1756865150453,0.56320748,111370.0,111360.0,0.00307]
[1756865150664,0.24577813,111370.0,111360.0,0.00353894]
[1756865150870,0.56320748,111370.0,111360.0,0.00569894]
[1756865151089,0.97255282,111370.0,111360.0,0.00046894]
[1756865151313,1.31301282,111370.0,111360.0,0.00046894]
[1756865151529,0.17962996,111340.0,111330.0,0.23016725]
[1756865151786,0.49705931,111340.0,111330.0,0.32422383]
[1756865152015,0.51799813,111340.0,111330.0,0.32442383]
[1756865152232,0.51799813,111340.0,111330.0,0.32342383]
[1756865152233,0.20056878,111340.0,111330.0,0.32342383]
[1756865152452,0.51799813,111340.0,111330.0,0.32342383]
[1756865152707,0.51799813,111340.0,111330.0,0.25097658]
[1756865152930,0.20056878,111340.0,111330.0,0.25097658]
[1756865153198,0.20056878,111340.0,111330.0,0.43162267]
[1756865153399,0.51799813,111340.0,111330.0,0.25197658]
[1756865153608,0.51799813,111340.0,111330.0,0.25504658]
[1756865154203,0.20056878,111340.0,111330.0,0.25504658]
[1756865154424,0.51799813,111340.0,111330.0,0.25504658]
[1756865155128,0.51799813,111340.0,111330.0,0.09828658]
[1756865155364,0.51799813,111340.0,111330.0,0.25500658]
[1756865156644,0.20056878,111340.0,111330.0,0.43465267]
[1756865157570,0.51799813,111340.0,111330.0,0.09828658]
[1756865157788,0.51799813,111340.0,111330.0,0.25484658]
[1756865158223,0.51799813,111340.0,111330.0,0.43449267]
[1756865158446,0.33836817,111340.0,111330.0,0.43449267]
[1756865158664,0.20056878,111340.0,111330.0,0.75192202]
[1756865158899,0.02093882,111340.0,111330.0,0.75192202]
[1756865159113,0.02265434,111340.0,111330.0,0.77542202]
[1756865159309,0.2022843,111340.0,111330.0,0.77542202]
[1756865159530,0.20056878,111340.0,111330.0,0.77542202]
[1756865160104,0.20056878,111340.0,111330.0,0.59577593]
[1756865160307,0.20056878,111340.0,111330.0,0.27834658]
[1756865160517,0.20056878,111340.0,111330.0,0.12178658]
[1756865160781,0.20056878,111340.0,111330.0,0.25480658]
[1756865160990,0.51799813,111340.0,111330.0,0.25480658]
[1756865161872,0.83741748,111340.0,111330.0,0.00114059]
[1756865162085,0.84063748,111340.0,111330.0,0.00114059]
[1756865162294,1.02411952,111340.0,111330.0,0.00114059]
[1756865162916,1.02411952,111340.0,111330.0,0.00014059]
[1756865163337,1.02511952,111340.0,111330.0,0.00014059]
[1756865164077,0.38704082,111340.0,111330.0,0.00537059]
[1756865164291,0.54799017,111340.0,111330.0,0.00537059]
[1756865164519,0.54799017,111340.0,111330.0,0.15878059]
[1756865164722,0.54600017,111340.0,111330.0,0.16185059]
[1756865164910,0.54600017,111340.0,111330.0,0.75308759]